Workbook

Sheet Intro
A1: zie voor een video | B1: http://www.yentel.nl/phasors.mp4
A2: insert a horizontal line using "insert shape" and call it 'X_as'
A3: insert a vertical line using "insert shape" and call it 'Y_as'
A4: insert a range of 6 columns and a number of rows equal to the amount of arrows + 1 and call it "gebied"
A5: the header of this gebied is named "shapeName"; "Xo";"Yo";"Xe";"Ye";"TextVisble"
A6: draw your shapes and give them a name
A7: insert this name in the first column of "gebied"
A9: go to visual basic,to your sheet code and insert
A10: Private Sub Worksheet_SelectionChange(ByVal Target As Range) | K10: real | L10: im. | M10: complex
A11: changePhasor | J11: R | K11: 1 | L11: 0 | M11: =COMPLEX(K11,L11,"j") -> 1 | O11: Ohm
A12: End Sub | J12: L | K12: 0 | L12: 0.5 | M12: =COMPLEX(K12,L12,"j") -> 0.5j
A13: If you put an "X" in columns "TextVisible" then the text will be visible | J13: Z | M13: =IMSUM(M11,M12) -> 1+0.5j
A14: You can change the layout properties in the normal way like color and width | J14: U | K14: 300 | L14: 20 | M14: =COMPLEX(K14,L14,"j") -> 300+20j | O14: invoer
J15: I | K15: =IMREAL(M15) -> 248 | L15: =IMAGINARY(M15) -> -104 | M15: =IMDIV(M14,M13) -> 248-104j
A16: below, you have the area "gebied". Change the Xo, Yo, Ye and Xe and see what happens | J16: UL | K16: =IMREAL(M16) -> 52 | L16: =IMAGINARY(M16) -> 124 | M16: =IMPRODUCT(M15,M12) -> 52+124j
A17: Insert as many rows as you want for more arrows. | J17: UR | K17: =IMREAL(M17) -> 248 | L17: =IMAGINARY(M17) -> -104 | M17: =IMPRODUCT(M15,M11) -> 248-104j
B18: schaal | C18: 0.5
A19: shapename | B19: Xo | C19: Yo | D19: Xe | E19: Ye | F19: TextVisible
A20: I | B20: 0 | C20: 0 | D20: =K15 -> 248 | E20: =L15 -> -104 | F20: X
A21: U | B21: 0 | C21: 0 | D21: =K14 -> 300 | E21: =L14 -> 20 | F21: x
A22: UL | B22: 0 | C22: 0 | D22: =K16 -> 52 | E22: =L16 -> 124 | F22: X
A23: UR | B23: =D22 -> 52 | C23: =E22 -> 124 | D23: =B23+K17 -> 300 | E23: =C23+L17 -> 20 | F23: X
A26: onder page layout zit een knop "selection pane" waarmee u alle shapes kunt selecteren

Sheet RCenL
B1: schaal van vectoren | D1: 1
A2: shapename | B2: Xo | C2: Yo | D2: Xe | E2: Ye | F2: TextVisible
A3: V | B3: 0 | C3: 0 | D3: =E35 -> 230 | E3: =F35 -> 230
A4: I | B4: 0 | C4: 0 | D4: =D48 -> 69 | E4: =E48 -> -23 | F4: x
A5: UoverR | B5: 0 | C5: 0 | D5: =D50 -> 138 | E5: =E50 -> -46
A6: UoverL | B6: =D5 -> 138 | C6: =E5 -> -46 | D6: =B6+D51 -> 184 | E6: =C6+E51 -> 92
A7: UoverC | B7: =D6 -> 184 | C7: =E6 -> 92 | D7: =B7+D52 -> 230 | E7: =C7+E52 -> 230
D17: i
F25: C
D33: INPUT
C34: complex | E34: real | F34: Im
B35: V | C35: =COMPLEX(E35,F35,"j") -> 230+230j | E35: 230 | F35: 230
B36: R | C36: =COMPLEX(E36,F36,"j") -> 2 | E36: 2 | F36: 0
B37: X | C37: =COMPLEX(E37,F37,"j") -> 2j | E37: 0 | F37: 2
B38: C | C38: =COMPLEX(E38,F38,"j") -> 2j | E38: 0 | F38: =F37 -> 2
B40: wat is de totale impedantie?
B42: R | C42: =C36 -> 2
B43: X | C43: =C37 -> 2j
B44: C | C44: =C38 -> 2j
D45: reeel | E45: im
B46: som | C46: =IMSUM(C42,C43,C44) -> 2+4j | D46: =IMREAL(C46) -> 2 | E46: =IMAGINARY(C46) -> 4
B48: stroom | C48: =IMDIV(C35,C46) -> 69-23j | D48: =IMREAL(C48) -> 69 | E48: =IMAGINARY(C48) -> -23
B50: U over R | C50: =IMPRODUCT(C48,C42) -> 138-46j | D50: =IMREAL(C50) -> 138 | E50: =IMAGINARY(C50) -> -46
B51: U over X | C51: =IMPRODUCT(C48,C43) -> 46+138j | D51: =IMREAL(C51) -> 46 | E51: =IMAGINARY(C51) -> 138
B52: U over C | C52: =IMPRODUCT(C48,C44) -> 46+138j | D52: 46 | E52: 138

Sheet transformer
B1: schaal van vectoren | D1: 0.5
A2: shapename | B2: Xo | C2: Yo | D2: Xe | E2: Ye | F2: TextVisible | G2: cos phi
A3: Gen | B3: 0 | C3: 0 | D3: =D43 -> 0 | E3: =E43 -> 500 | F3: x | G3: =D3/((D3^2+E3^2)^0.5) -> 0 | H3: =((D3^2+E3^2)^0.5) -> 500
A4: E2 | B4: 0 | C4: 0 | D4: =G73 -> 78.4805819 | E4: =H73 -> 299.2470969 | F4: x | G4: =D4/((D4^2+E4^2)^0.5) -> 0.253681054 | H4: =((D4^2+E4^2)^0.5) -> 309.367139
A5: Uz1 | B5: =D3 -> 0 | C5: =E3 -> 500 | D5: =B5-G70 -> 78.4805819 | E5: =C5-H70 -> 299.2470969 | F5: x | G5: =D5/((D5^2+E5^2)^0.5) -> 0.253681054 | H5: =((D5^2+E5^2)^0.5) -> 309.367139 | I5: =H5/25/SQRT(3) -> 7.14452804
A6: I2 | B6: 0 | C6: 0 | D6: =G76 -> 49.8951875 | E6: =H76 -> 32.67747538 | G6: =D6/((D6^2+E6^2)^0.5) -> 0.8365569963 | H6: =((D6^2+E6^2)^0.5) -> 59.64350034 | I6: =H6/25/SQRT(3) -> 1.377407639
A7: V2 | B7: 0 | C7: 0 | D7: =G79 -> 83.4516373 | E7: =H79 -> 90.30254452 | F7: x
D33: ìnput
C34: complex | D34: real | E34: Im
B35: R1 | C35: =COMPLEX(D35,E35,"j") -> 1 | D35: 1 | E35: 0
B36: X1 | C36: 2j | D36: 0 | E36: 2
B37: X2 | C37: j | D37: 0 | E37: 1
B38: R2 | C38: 1 | D38: =D35 -> 1 | E38: 0
B39: Xm | C39: 100j | D39: 0 | E39: 100
B40: Rm | C40: 100 | D40: 100 | E40: 0
B41: Xb | C41: 0,5j | D41: 0 | E41: 0.5
B42: Rb | C42: 2 | D42: 2 | E42: 0
B43: V1 | C43: 500j | D43: 0 | E43: 500
B46: calculate the impedance of magnetizing branch | G46: reeel | H46: imaginair
B47: Xm | C47: =Xm -> 100j | G47: =IMREAL(C47) -> 0 | H47: =IMAGINARY(C47) -> 100
B48: Rm | C48: =Rm -> 100 | G48: =IMREAL(C48) -> 100 | H48: =IMAGINARY(C48) -> 0
B49: Xm//Rm | C49: =IMDIV((IMPRODUCT(C47,C48)),IMSUM(C47,C48)) -> 50+50j | G49: 50 | H49: 50
B51: calculate the impedance of load branch | G51: 0 | H51: 0
B52: X2 | C52: =X2_ -> j | G52: 0 | H52: 1
B53: R2 | C53: =_R2 -> 1 | G53: 1 | H53: 0
B54: Rb | C54: =Rb -> 2 | G54: 2 | H54: 0
B55: Xb | C55: =Xb -> 0,5j | G55: 0 | H55: 0.5
C56: =IMSUM(C52,C53,C54,C55) -> 3+1,5j | G56: 3 | H56: 1.5
B58: calculate the impedance of parallel load and magnetizing branch
B59: Zm//Zb | C59: =IMDIV((IMPRODUCT(C56,C49)),IMSUM(C56,C49)) -> 2,84962233920806+1,47631036850538j | G59: 2.849622339 | H59: 1.476310369
B61: Calculate serie impedance
B62: Z1+Zm//Zb | C62: =IMSUM(_R1,X1_,C59) -> 3,84962233920806+3,47631036850538j | G62: 3.849622339 | H62: 3.476310369
B64: what's the current I1
B65: V/Z | C65: =IMDIV(transformer!V1_,C62) -> 64,6050448764302+71,5428133906163j | G65: 64.60504488 | H65: 71.54281339
B67: what is Z1?
C68: =IMSUM(_R1,X1_) -> 1+2j | G68: 1 | H68: 2
B69: and the voltage drop over Z1?
B70: Z1*I1 | C70: =IMPRODUCT(C68,C65) -> -78,4805819048024+200,752903143477j | G70: -78.4805819 | H70: 200.7529031
B72: and E2?
C73: =IMSUB(V1_,C70) -> 78,4805819048024+299,247096856523j | G73: 78.4805819 | H73: 299.2470969
B75: and I2
B76: I2 | C76: =IMDIV(C73,C62) -> 49,8951874951188+32,6774753844036j | G76: =IMREAL(C76) -> 49.8951875 | H76: =IMAGINARY(C76) -> 32.67747538
B78: and V2?
B79: V2 | C79: =IMPRODUCT(C76,IMSUM(transformer!Xb,transformer!Rb)) -> 83,4516372980358+90,3025445163666j | G79: =IMREAL(C79) -> 83.4516373 | H79: =IMAGINARY(C79) -> 90.30254452

Sheet voorbeeld 3,2,6 blad 3.11
Q5: wijzig de waarden in de rode cirkels
J6: Ia | K6: graden | Q6: de rode cellen geven de stromen weer.
F7: Ua | G7: graden | J7: =I67 -> 5.671711984 | K7: =J67 -> 5.710593137
F8: 5.7 | G8: 90 | M8: Ra | N8: Xa
M9: 0.1 | N9: 1
G14: In | H14: graden | I14: Rn | J14: Xn | M14: Un | N14: graden
C15: Uc | D15: graden | G15: =I73 -> 4.113410487e-19 | H15: =J73 -> -71.16151526 | I15: 9999 | J15: 999 | M15: =I65 -> 4.133476164e-15 | N15: =J65 -> -65.45602824
C16: 5.7 | D16: 210
N17: Rb | O17: Xb
I18: Rc | J18: Xc | N18: 0.1 | O18: 1
I19: 0.1 | J19: 1
E21: Ub | F21: graden
E22: 5.7 | F22: -30
E25: Ic | F25: graden | L25: Ib | M25: graden
E26: =I71 -> 5.671711984 | F26: =J71 -> 125.7105931 | L26: =I69 -> 5.671711984 | M26: =J69 -> -114.2894069
B31: EVZ01dl3-driefasensystemen hogeschool rotterdam | F31: EVZ01dl3-driefasensystemen.pdf
E32: schaal | F32: 50
C33: shapename | D33: Xo | E33: Yo | F33: Xe | G33: Ye | H33: TextVisible
C34: _Ua | D34: 0 | E34: 0 | F34: =D45 -> 3.491673096e-16 | G34: 5.7 | H34: x
C35: _Ub | D35: 0 | E35: 0 | F35: 4.936344802 | G35: -2.85 | H35: x
C36: _Uc | D36: 0 | E36: 0 | F36: -4.936344802 | G36: -2.85 | H36: x
C37: _Un | D37: 0 | E37: 0 | F37: =G65 -> 1.717010748e-15 | G37: =H65 -> -3.759986607e-15 | H37: x
C38: Ub-Un | D38: 0 | E38: 0 | F38: =G68 -> 4.936344802 | G38: =H68 -> -2.85 | H38: x
C39: _In | D39: 0 | E39: 0 | F39: =G73 -> 1.328226305e-19 | G39: =H73 -> -3.893065722e-19 | H39: x
C40: _Ia | D40: 0 | E40: 0 | F40: =G67 -> 5.643564356 | G40: =H67 -> 0.5643564356 | H40: x
C41: _Ib | D41: 0 | E41: 0 | F41: =G69 -> -2.333035168 | G41: =H69 -> -5.169648318 | H41: x
C42: _Ic | D42: 0 | E42: 0 | F42: =G71 -> -3.310529188 | G42: =H71 -> 4.605291883 | H42: x
D44: X | E44: Y | G44: Re | H44: Im | I44: abs | J44: hoek
C45: Ua | D45: =F8*COS(G8*2*PI()/360) -> 3.491673096e-16 | E45: =F8*SIN(G8*2*PI()/360) -> 5.7 | F45: =COMPLEX(D45,E45,"i") -> 3,49167309648957E-16+5,7i | G45: =IMREAL(F45) -> 3.491673096e-16 | H45: =IMAGINARY(F45) -> 5.7 | I45: =IMABS(F45) -> 5.7 | J45: =IMARGUMENT(F45)*360/2/PI() -> 90
C46: Ub | D46: =E22*COS(F22*2*PI()/360) -> 4.936344802 | E46: =E22*SIN(F22*2*PI()/360) -> -2.85 | F46: =COMPLEX(D46,E46,"i") -> 4,9363448015713-2,85i | G46: =IMREAL(F46) -> 4.936344802 | H46: =IMAGINARY(F46) -> -2.85 | I46: 5.7 | J46: -30
C47: Uc | D47: =C16*COS(D16*2*PI()/360) -> -4.936344802 | E47: =C16*SIN(D16*2*PI()/360) -> -2.85 | F47: =COMPLEX(D47,E47,"i") -> -4,9363448015713-2,85i | G47: -4.936344802 | H47: -2.85 | I47: 5.7 | J47: -150
C48: Za | F48: =COMPLEX(M9,N9,"i") -> 0,1+i | G48: 0.1 | H48: 1 | I48: 1.004987562 | J48: 84.28940686
C49: Zb | F49: =COMPLEX(N18,O18,"i") -> 0,1+i | G49: 0.1 | H49: 1 | I49: 1.004987562 | J49: 84.28940686
C50: Zc | F50: =COMPLEX(I19,J19,"i") -> 0,1+i | G50: 0.1 | H50: 1 | I50: 1.004987562 | J50: 84.28940686
C51: Zn | F51: =COMPLEX(I15,J15,"i") -> 9999+999i | I51: 10048.78112 | J51: 5.705487017
C53: Ia | F53: =IMDIV(F45,F48) -> 5,64356435643564+0,564356435643564i | I53: =IMABS(F53) -> 5.671711984 | J53: =IMARGUMENT(F53)*360/2/PI() -> 5.710593137
C54: Ib | F54: =IMDIV(F46,F49) -> -2,33303516816126-5,16964831838743i | I54: =IMABS(F54) -> 5.671711984 | J54: =IMARGUMENT(F54)*360/2/PI() -> -114.2894069
C55: Ic | F55: =IMDIV(F47,F50) -> -3,31052918827439+4,60529188274386i | I55: =IMABS(F55) -> 5.671711984 | J55: =IMARGUMENT(F55)*360/2/PI() -> 125.7105931
C57: som stromen | F57: =IMSUM(F54,F55,F53) -> -1,06581410364015E-14-6,21724893790088E-15i | I57: =IMABS(F57) -> 1.233896895e-14 | J57: =IMARGUMENT(F57)*360/2/PI() -> -149.7435628
C59: 1/Za | F59: =IMDIV(1,F48) -> 0,099009900990099-0,99009900990099i | I59: 0.9950371902 | J59: -84.28940686
C60: 1/Zb | F60: =IMDIV(1,F49) -> 0,099009900990099-0,99009900990099i | I60: 0.9950371902 | J60: -84.28940686
C61: 1/Zc | F61: =IMDIV(1,F50) -> 0,099009900990099-0,99009900990099i | I61: 0.9950371902 | J61: -84.28940686
C62: 1/Zn | F62: =IMDIV(1,F51) -> 0,0000990215670933952-9,89324387701789E-06i | I62: 9.951455684e-05 | J62: -5.705487017
C63: som Z | F63: =IMSUM(F59,F60,F61,F62) -> 0,29712872453739-2,97030692294685i | I63: 2.985131269 | J63: -84.2875346
B65: a. berekening Un | C65: Un | F65: =IMDIV(F57,F63) -> 1,71701074847516E-15-3,7599866073883E-15i | G65: 1.717010748e-15 | H65: =IMAGINARY(F65) -> -3.759986607e-15 | I65: =IMABS(F65) -> 4.133476164e-15 | J65: =IMARGUMENT(F65)*360/2/PI() -> -65.45602824
B66: b | C66: Ua-Un | F66: =IMSUB(F45,F65) -> -1,3678434388262E-15+5,7i | G66: -1.367843439e-15 | H66: =IMAGINARY(F66) -> 5.7 | I66: 5.7 | J66: 90
C67: Ia | F67: =IMDIV(F66,F48) -> 5,64356435643564+0,564356435643566i | G67: 5.643564356 | H67: 0.5643564356 | I67: 5.671711984 | J67: 5.710593137
C68: Ub-Un | F68: =IMSUB(F46,F65) -> 4,9363448015713-2,85i | G68: 4.936344802 | H68: -2.85 | I68: 5.7 | J68: -30
C69: Ib | F69: =IMDIV(F68,F49) -> -2,33303516816126-5,16964831838743i | G69: =IMREAL(F69) -> -2.333035168 | H69: -5.169648318 | I69: 5.671711984 | J69: -114.2894069
C70: Uc-Un | F70: =IMSUB(F47,F65) -> -4,9363448015713-2,85i | G70: =IMREAL(F70) -> -4.936344802 | H70: -2.85 | I70: 5.7 | J70: -150
C71: Ic | F71: =IMDIV(F70,F50) -> -3,31052918827439+4,60529188274386i | G71: -3.310529188 | H71: 4.605291883 | I71: 5.671711984 | J71: 125.7105931
C72: Un-ster | F72: =IMSUB(F65,0) -> 1,71701074847516E-15-3,7599866073883E-15i | G72: 1.717010748e-15 | H72: =IMAGINARY(F72) -> -3.759986607e-15 | I72: 4.133476164e-15 | J72: -65.45602824
C73: In | F73: =IMDIV(F72,F51) -> 1,32822630549E-19-3,89306572187894E-19i | G73: 1.328226305e-19 | H73: -3.893065722e-19 | I73: 4.113410487e-19 | J73: -71.16151526
B74: c | C74: PspanningA | F74: =IMPRODUCT(F67,F45) -> -3,21683168316832+32,1683168316831i | G74: -3.216831683 | H74: =IMAGINARY(F74) -> 32.16831683 | I74: 32.32875831 | J74: 95.71059314
C75: PspanningB | F75: =IMPRODUCT(F69,F46) -> -26,25016373164-18,870016373164i | G75: -26.25016373 | H75: -18.87001637 | I75: 32.32875831 | J75: -144.2894069
C76: PspanningC | F76: =IMPRODUCT(F71,F47) -> 29,4669954148083-13,2983004585191i | G76: 29.46699541 | H76: -13.29830046 | I76: 32.32875831 | J76: -24.28940686
B77: d | C77: vermogenA | F77: =IMPRODUCT(IMPOWER(F67,2),F48) -> -3,21683168316834+32,1683168316831i | G77: -3.216831683 | H77: 32.16831683 | I77: 32.32875831 | J77: 95.71059314
C78: vermogenB | F78: =IMPRODUCT(IMPOWER(F69,2),F49) -> -26,2501637316401-18,870016373164i | G78: -26.25016373 | H78: -18.87001637 | I78: 32.32875831 | J78: -144.2894069
C79: vermogenC | F79: =IMPRODUCT(IMPOWER(F71,2),F50) -> 29,4669954148083-13,2983004585191i | G79: 29.46699541 | H79: -13.29830046 | I79: 32.32875831 | J79: -24.28940686
C80: vermogen nul | F80: =IMPRODUCT(IMPOWER(F73,2),F51) -> -1,23572961330135E-33-1,16785488092095E-33i | G80: -1.235729613e-33 | H80: =IMAGINARY(F80) -> -1.167854881e-33 | I80: 1.70026842e-33 | J80: -136.6175435
C81: som vermogen | F81: =IMSUM(F78,F79) -> 3,2168316831682-32,1683168316831i | G81: 3.216831683 | H81: -32.16831683 | I81: 32.32875831 | J81: -84.28940686

Sheet condensator
B1: schaal van vectoren | D1: 1
A2: shapename | B2: Xo | C2: Yo | D2: Xe | E2: Ye | F2: TextVisible
A3: V1_ | B3: 0 | C3: 0 | D3: =D38 -> 400 | E3: 0 | F3: x
A4: E1- | B4: 0 | C4: 0 | D4: 0 | E4: 0
A5: R1I1 | B5: 0 | C5: 0 | D5: 0 | E5: 0 | R5: spanning | S5: 400 | T5: V
A6: X1I1 | B6: 0 | C6: 0 | D6: 0 | E6: 0
A7: I1- | B7: 0 | C7: 0 | D7: =D45 -> 180.4219591 | E7: =D46 -> 135.3164693 | F7: x
A8: V2- | B8: 0 | C8: 0 | D8: 0 | E8: 0
A9: R2I2 | B9: 0 | C9: 0 | D9: =D45 -> 180.4219591 | E9: 0 | F9: x
A10: X2I2 | B10: =D9 -> 180.4219591 | C10: 0 | D10: =B10 -> 180.4219591 | E10: =D46 -> 135.3164693 | F10: x
R11: de connected load is dan | S11: =S13*S5*SQRT(3)/1000 -> 131.5789474 | T11: kVA
R13: LF current | S13: =S18/S5/SQRT(3)*1000 -> 189.9178517
R17: eff omvormer | S17: 0.95
R18: ingaand omvormer vermogen | S18: =S24/S17 -> 131.5789474 | T18: kW
R24: elek vermogen | S24: =S28/S30 -> 125 | T24: kW
R26: LF current | S26: =S27/S5*1000/SQRT(3) -> 225.5274489
R27: elek vermogen | S27: =S28/S29/S30 -> 156.25 | T27: kVA
R28: asvermogen | S28: 100 | T28: kW
R29: pF | S29: 0.8
R30: eff | S30: 0.8
A33: een motor van | D33: 100 | E33: kW
A34: en een rendement van | D34: 0.8
A35: heeft een ingaand vermogen van | D35: =D33/D34 -> 125 | E35: kW
A36: en een cos phi van | D36: 0.8 | F36: als voorbeeld zoals PTW het wil
A37: is het vermogen | D37: =D35/D36 -> 156.25 | E37: kVA
A38: bij een spanning van | D38: 400 | E38: V
A39: vraagt een stroom van | D39: =D37/D38*1000/SQRT(3) -> 225.5274489 | E39: A
A40: de impedantie Z is | D40: =D38/D39 -> 1.773620027 | E40: Ohm
A41: reeel deel R2 | D41: =D40*D36 -> 1.418896022 | E41: Ohm
A42: imaginair X2 | D42: =(D40^2-D41^2)^0.5 -> 1.064172016 | E42: Ohm
A44: sin phi | D44: =D42/D40 -> 0.6
A45: reele stroom | D45: =D39*D36 -> 180.4219591 | E45: A
A46: blindstroom | D46: =D39*D44 -> 135.3164693 | E46: A
A48: om de blindstroom te compenseren
A49: Zc | D49: =D38/D46 -> 2.956033378 | E49: Ohm
A51: wat is dat dan in pu?
A52: er staat een base MVA van | D52: 100000 | E52: kVA
A53: en een base spanning van | D53: 400 | E53: V
A54: mijn base stroom is dan | D54: =D52/D53 -> 250 | E54: kA
A55: mijn base impedance | D55: =D53/D54/1000 -> 0.0016 | E55: Ohm
A57: met de z van | D57: =D40 -> 1.773620027 | E57: Ohm
A58: dus mijn Zpu is dan | D58: =D40/D55 -> 1108.512517
A60: mijn Zc is | D60: =D49 -> 2.956033378 | E60: Ohm
A61: en mijn Zc pu is dan | D61: =D60/D55 -> 1847.520861
A66: stroom in pu | C66: Upu/Zc pu | D66: =1/D61 -> 0.0005412658774
A67: werklijke stroom | D67: =D66*D54*1000 -> 135.3164693 | E67: A

Sheet ster driehoek
K2: naam | L2: P | M2: cosphi | N2: S | O2: ywaarde | P2: xo | Q2: yo | R2: x1 | S2: y1 | T2: arccos | U2: sinphi
K3: =A17 -> _L1 | L3: 100 | M3: 0.8 | N3: =L3/M3 -> 125 | O3: =N3*U3 -> 75 | P3: 0 | Q3: 0 | R3: =L3 -> 100 | S3: =U3*N3 -> 75 | T3: =ACOS(M3) -> 0.6435011088 | U3: =SIN(T3) -> 0.6
K4: =A18 -> _L2 | L4: 100 | M4: 1 | N4: =L4/M4 -> 100 | O4: =N4*U4 -> 0 | P4: =R3 -> 100 | Q4: =S3 -> 75 | R4: =L4+P4 -> 200 | S4: =U4*N4+Q4 -> 75 | T4: =ACOS(M4) -> 0 | U4: =SIN(T4) -> 0
K5: _L3 | L5: 100 | M5: 0.5 | N5: 200 | O5: 173.2050808 | P5: =R4 -> 200 | Q5: =S4 -> 75 | R5: =L5+P5 -> 300 | S5: =U5*N5+Q5 -> 248.2050808 | T5: 1.047197551 | U5: 0.8660254038
L6: =SUM(L3:L5) -> 300 | N6: =SUM(N3:N5) -> 425 | O6: =SUM(O3:O5) -> 248.2050808 | S6: =SUM(S3:S5) -> 398.2050808
L9: =(L6^2+O6^2)^0.5 -> 389.3658461
D11: verplaats | E11: 300
C15: schaal | D15: 0.5 | K15: fasen | M15: 3e
A16: shapename | B16: Xo | C16: Yo | D16: Xe | E16: Ye | F16: TextVisible | J16: 10 | K16: 200 | M16: 30 | N16: 100
A17: _L1 | B17: =D18 -> 173.2050808 | C17: =E18 -> -100 | D17: =K17 -> 0 | E17: =L17 -> 200 | F17: x | J17: 0 | K17: =SIN(J17*2*PI()/360)*$K$16 -> 0 | L17: =COS(J17*2*PI()/360)*$K$16 -> 200 | M17: 30 | N17: =SIN(M17*2*PI()/360)*$N$16 -> 50 | O17: =COS(M17*2*PI()/360)*$N$16 -> 86.60254038
A18: _L2 | B18: =D19 -> -173.2050808 | C18: =E19 -> -100 | D18: =K29 -> 173.2050808 | E18: =L29 -> -100 | F18: x | J18: =J17+J$16 -> 10 | K18: 34.72963553 | L18: 196.9615506 | M18: =M17+M$16 -> 60 | N18: =SIN(M18*2*PI()/360)*$N$16 -> 86.60254038 | O18: =COS(M18*2*PI()/360)*$N$16 -> 50
A19: _L3 | B19: =D17 -> 0 | C19: =E17 -> 200 | D19: =K41 -> -173.2050808 | E19: =L41 -> -100 | F19: x | J19: =J18+J$16 -> 20 | K19: 68.40402867 | L19: 187.9385242 | M19: =M18+M$16 -> 90 | N19: 100 | O19: 6.125742275e-15
A20: _L4 | B20: 0 | C20: =0-E$11 -> -300 | D20: =(B17-D17)/2 -> 86.60254038 | E20: =(C17-E17)/2-E$11 -> -450 | F20: x | J20: 30 | K20: 100 | L20: 173.2050808 | M20: 120 | N20: 86.60254038 | O20: -50
A21: _L5 | B21: 0 | C21: =0-E$11 -> -300 | D21: =(B18-D18)/2 -> -173.2050808 | E21: =(C18-E18)/2-E$11 -> -300 | F21: x | J21: 40 | K21: 128.5575219 | L21: 153.2088886 | M21: 150 | N21: 50 | O21: -86.60254038
A22: _L6 | B22: 0 | C22: =0-E$11 -> -300 | D22: 86.60254038 | E22: =(C19-E19)/2-E$11 -> -150 | F22: x | J22: 50 | K22: 153.2088886 | L22: 128.5575219 | M22: 180 | N22: 1.225148455e-14 | O22: -100
A23: _L7 | B23: =D20 -> 86.60254038 | C23: =E20 -> -450 | D23: =D21 -> -173.2050808 | E23: =E21 -> -300 | F23: x | J23: 60 | K23: 173.2050808 | L23: 100 | M23: 210 | N23: -50 | O23: -86.60254038
A24: _L8 | B24: =D21 -> -173.2050808 | C24: -300 | D24: =D22 -> 86.60254038 | E24: -150 | F24: x | J24: 70 | K24: 187.9385242 | L24: 68.40402867 | M24: 240 | N24: -86.60254038 | O24: -50
A25: _L9 | B25: =D22 -> 86.60254038 | C25: =E22 -> -150 | D25: =D20 -> 86.60254038 | E25: =E20 -> -450 | F25: x | J25: 80 | K25: 196.9615506 | L25: 34.72963553 | M25: 270 | N25: -100 | O25: -1.837722682e-14
J26: 90 | K26: 200 | L26: 1.225148455e-14 | M26: 300 | N26: -86.60254038 | O26: 50
J27: 100 | K27: 196.9615506 | L27: -34.72963553 | M27: 330 | N27: -50 | O27: 86.60254038
J28: 110 | K28: 187.9385242 | L28: -68.40402867 | M28: 360 | N28: -2.45029691e-14 | O28: 100
A29: _3L1 | B29: 0 | C29: 0 | D29: 300 | E29: =O17 -> 86.60254038 | J29: 120 | K29: 173.2050808 | L29: -100 | M29: 390 | N29: 50 | O29: 86.60254038
A30: _3L2 | B30: 0 | C30: 0 | D30: 300 | E30: =O21 -> -86.60254038 | J30: =J29+J$16 -> 130 | K30: =SIN(J30*2*PI()/360)*$K$16 -> 153.2088886 | L30: =COS(J30*2*PI()/360)*$K$16 -> -128.5575219 | M30: 420 | N30: 86.60254038 | O30: =COS(M30*2*PI()/360)*$N$16 -> 50
A31: _3L3 | B31: 0 | C31: 0 | D31: 300 | E31: =O29 -> 86.60254038 | F31: x | J31: 140 | K31: 128.5575219 | L31: -153.2088886 | M31: 450 | N31: 100 | O31: 3.062871137e-14
J32: 150 | K32: 100 | L32: -173.2050808 | M32: 480 | N32: 86.60254038 | O32: -50
C33: S totaal | D33: =(D31^2+E31^2)^0.5 -> 312.2498999 | E33: 425 | J33: 160 | K33: 68.40402867 | L33: -187.9385242 | M33: 510 | N33: 50 | O33: -86.60254038
C34: U | D34: 400 | E34: 400 | J34: 170 | K34: 34.72963553 | L34: -196.9615506 | M34: 540 | N34: 3.675445365e-14 | O34: -100
C35: I | D35: =D33/D34/SQRT(3) -> 0.4506939094 | E35: =E33/E34/SQRT(3) -> 0.613434661 | J35: 180 | K35: 2.45029691e-14 | L35: -200 | M35: 570 | N35: -50 | O35: -86.60254038
J36: 190 | K36: -34.72963553 | L36: -196.9615506 | M36: 600 | N36: -86.60254038 | O36: -50
J37: 200 | K37: -68.40402867 | L37: -187.9385242 | M37: 630 | N37: -100 | O37: -4.288019592e-14
J38: 210 | K38: -100 | L38: -173.2050808 | M38: 660 | N38: -86.60254038 | O38: 50
J39: 220 | K39: -128.5575219 | L39: -153.2088886 | M39: 690 | N39: -50 | O39: 86.60254038
J40: 230 | K40: -153.2088886 | L40: -128.5575219 | M40: 720 | N40: -4.90059382e-14 | O40: 100
J41: 240 | K41: -173.2050808 | L41: -100 | M41: 750 | N41: 50 | O41: 86.60254038
J42: 250 | K42: -187.9385242 | L42: -68.40402867 | M42: 780 | N42: 86.60254038 | O42: 50
J43: 260 | K43: -196.9615506 | L43: -34.72963553 | M43: 810 | N43: 100 | O43: 2.327673644e-13
J44: 270 | K44: -200 | L44: -3.675445365e-14 | M44: 840 | N44: 86.60254038 | O44: -50
J45: 280 | K45: -196.9615506 | L45: 34.72963553 | M45: 870 | N45: 50 | O45: -86.60254038
J46: 290 | K46: -187.9385242 | L46: 68.40402867 | M46: 900 | N46: 6.125742275e-14 | O46: -100
J47: 300 | K47: -173.2050808 | L47: 100 | M47: 930 | N47: -50 | O47: -86.60254038
J48: 310 | K48: -153.2088886 | L48: 128.5575219 | M48: 960 | N48: -86.60254038 | O48: -50
J49: 320 | K49: -128.5575219 | L49: 153.2088886 | M49: 990 | N49: -100 | O49: 1.102525189e-13
J50: 330 | K50: -100 | L50: 173.2050808 | M50: 1020 | N50: -86.60254038 | O50: 50
J51: 340 | K51: -68.40402867 | L51: 187.9385242 | M51: 1050 | N51: -50 | O51: 86.60254038
J52: 350 | K52: -34.72963553 | L52: 196.9615506 | M52: 1080 | N52: -7.350890729e-14 | O52: 100
D74: =360.8+577.4 -> 938.2

Sheet Sheet2
B1: vp | C1: 230 | D1: V
B2: stap | C2: 0.0005 | T2: f
B3: basefreq | C3: 50 | D3: Hz
B4: 3thHarmFreq | C4: 150 | D4: Hz
B10: KWADRAAT | D10: =D12^2 -> 0 | E10: =E12^2 -> 0.04 | F10: 0.0225 | G10: 0.01 | I10: SOM | J10: =SUM(D10:G10) -> 0.0725 | K10: WORTEL | L10: =J10^0.5 -> 0.2692582404
B11: harmonische | C11: 1 | D11: 3 | E11: 5 | F11: 7 | G11: 9 | K11: THD | L11: =L10*100 -> 26.92582404 | M11: %
B12: percentage | C12: 1 | D12: 0 | E12: 0.2 | F12: 0.15 | G12: 0.1
A13: tijd | B13: hoek | P13: VL3L1 | T13: sin(3wt) | W13: i
T15: =vp*SIN(3*2*basefreq*PI()*A18) -> -28.82664372 | U15: =vp*SIN(3*2*basefreq*PI()*A18) -> -28.82664372
A17: [s] | B17: wt | C17: 1e | D17: 3e | E17: 5e | F17: 7e | G17: 9e | H17: som | P17: =P13 -> VL3L1 | T17: =T13 -> sin(3wt) | W17: =W13 -> i
A18: -0.0032 | B18: =2*PI()*A18*basefreq -> -1.005309649 | C18: =SIN(C$11*$B18)*vp*C$12 -> -194.1954229 | D18: 0 | E18: 43.74859975 | F18: -23.61687515 | G18: -8.466864712 | H18: =SUM(C18:G18) -> -182.530563 | P18: =E18-C18 -> 237.9440226 | Q18: =F18+G18+P18 -> 205.8602827 | W18: 0
A19: =A18+stap -> -0.0027 | B19: -0.8482300165 | C19: -172.525546 | D19: 0 | E19: 40.98630011 | F19: 11.68645825 | G19: -22.44608552 | H19: =SUM(C19:G19) -> -142.2988732 | P19: =E19-C19 -> 213.5118461 | Q19: =F19+G19+P19 -> 202.7522189 | W19: =C19/U19*vp/10 -> 
A20: -0.0022 | B20: -0.6911503838 | C20: -146.6075176 | D20: 0 | E20: 14.21478174 | F20: 34.2279572 | G20: 1.444181949 | H20: -96.72059676 | P20: 160.8222994 | Q20: 196.4944385
A21: -0.0017 | B21: -0.5340707511 | C21: -117.0795256 | D21: 0 | E21: -20.88356299 | F21: 19.39187654 | G21: 22.89792519 | H21: -95.67328689 | P21: 96.19596263 | Q21: 138.4857644
A22: -0.0012 | B22: -0.3769911184 | C22: -84.66864712 | D22: 0 | E22: -43.74859975 | F22: -16.62050176 | G22: 5.719867405 | H22: -139.3178812 | P22: 40.92004737 | Q22: 30.01941302
A23: -0.0007 | B23: -0.2199114858 | C23: -50.17294552 | D23: 0 | E23: -40.98630011 | F23: -34.48297633 | G23: -21.10835639 | H23: -146.7505784 | P23: 9.186645409 | Q23: -46.40468731
A24: -0.0002 | B24: -0.06283185307 | C24: -14.44181949 | D24: 0 | E24: -14.21478174 | F24: -14.68938556 | G24: -12.32401628 | H24: -55.67000308 | P24: 0.2270377505 | Q24: -26.78636409
A25: 0.0003 | B25: 0.09424777961 | C25: 21.64491206 | D25: 0 | E25: 20.88356299 | F25: 21.14529335 | G25: 17.2525546 | H25: 80.926323 | P25: -0.7613490752 | Q25: 37.63649888
A26: 0.0008 | B26: 0.2513274123 | C26: 57.19867405 | D26: 0 | E26: 43.74859975 | F26: 33.88891015 | G26: 17.72180458 | H26: 152.5579885 | P26: -13.4500743 | Q26: 38.16064044
A27: 0.0013 | B27: 0.408407045 | C27: 91.34401485 | D27: 0 | E27: 40.98630011 | F27: 9.625193158 | G27: -11.70795256 | H27: 130.2475556 | P27: -50.35771473 | Q27: -52.44047414
A28: 0.0018 | B28: 0.5654866776 | C28: =SIN(C$11*$B28)*vp*C$12 -> 123.2401628 | D28: 0 | E28: 14.21478174 | F28: -25.14941765 | G28: -21.38485918 | H28: 90.92066776 | P28: -109.0253811 | Q28: -155.5596579
A29: 0.0023 | B29: 0.7225663103 | C29: 152.101729 | D29: 0 | E29: -20.88356299 | F29: -32.46038653 | G29: 5.017294552 | H29: 103.7750741 | P29: -172.985292 | Q29: -200.428384
A30: 0.0028 | B30: 0.879645943 | C30: 177.2180458 | D30: 0 | E30: -43.74859975 | F30: -4.323996558 | G30: 22.95461475 | H30: 152.1000643 | P30: -220.9666456 | Q30: -202.3360274
A31: 0.0033 | B31: 1.036725576 | C31: 197.9706662 | D31: 0 | E31: -40.98630011 | F31: 28.53427981 | G31: 2.164491206 | H31: 187.6831371 | P31: -238.9569663 | Q31: -208.2581953
A32: 0.0038 | B32: 1.193805208 | C32: 213.8485918 | D32: 0 | E32: -14.21478174 | F32: 30.23258046 | G32: -22.27741271 | H32: 207.5889778 | P32: -228.0633735 | Q32: -220.1082057
A33: 0.0043 | B33: 1.350884841 | C33: 224.4608552 | D33: 0 | E33: 20.88356299 | F33: -1.083671188 | G33: -9.134401485 | H33: 235.1263456 | P33: -203.5772923 | Q33: -213.7953649
A34: 0.0048 | B34: 1.507964474 | C34: 229.5461475 | D34: 0 | E34: 43.74859975 | F34: -31.21653331 | G34: 19.41954229 | H34: 261.4977563 | P34: -185.7975478 | Q34: -197.5945388
A35: 0.0053 | B35: 1.665044106 | C35: 228.9792519 | D35: 0 | E35: 40.98630011 | F35: -27.26034793 | G35: 15.2101729 | H35: 257.9153769 | P35: -187.9929517 | Q35: -200.0431268
A36: 0.0058 | B36: 1.822123739 | C36: 222.7741271 | D36: 0 | E36: 14.21478174 | F36: 6.464655353 | G36: -14.66075176 | H36: 228.7928124 | P36: -208.5593453 | Q36: -216.7554417
A37: 0.0063 | B37: 1.979203372 | C37: 211.0835639 | D37: 0 | E37: -20.88356299 | F37: 33.13013216 | G37: -19.79706662 | H37: 203.5330665 | P37: -231.9671269 | Q37: -218.6340614
A38: 0.0068 | B38: 2.136283004 | C38: =SIN(C$11*$B38)*vp*C$12 -> 194.1954229 | D38: 0 | E38: -43.74859975 | F38: 23.61687515 | G38: 8.466864712 | H38: 182.530563 | P38: -237.9440226 | Q38: -205.8602827
A39: 0.0073 | B39: 2.293362637 | C39: 172.525546 | D39: 0 | E39: -40.98630011 | F39: -11.68645825 | G39: 22.44608552 | H39: 142.2988732 | P39: -213.5118461 | Q39: -202.7522189
A40: 0.0078 | B40: 2.45044227 | C40: 146.6075176 | D40: 0 | E40: -14.21478174 | F40: -34.2279572 | G40: -1.444181949 | H40: 96.72059676 | P40: -160.8222994 | Q40: -196.4944385
A41: 0.0083 | B41: 2.607521902 | C41: 117.0795256 | D41: 0 | E41: 20.88356299 | F41: -19.39187654 | G41: -22.89792519 | H41: 95.67328689 | P41: -96.19596263 | Q41: -138.4857644
A42: 0.0088 | B42: 2.764601535 | C42: 84.66864712 | D42: 0 | E42: 43.74859975 | F42: 16.62050176 | G42: -5.719867405 | H42: 139.3178812 | P42: -40.92004737 | Q42: -30.01941302
A43: 0.0093 | B43: 2.921681168 | C43: 50.17294552 | D43: 0 | E43: 40.98630011 | F43: 34.48297633 | G43: 21.10835639 | H43: 146.7505784 | P43: -9.186645409 | Q43: 46.40468731
A44: 0.0098 | B44: 3.078760801 | C44: 14.44181949 | D44: 0 | E44: 14.21478174 | F44: 14.68938556 | G44: 12.32401628 | H44: 55.67000308 | P44: -0.2270377505 | Q44: 26.78636409
A45: 0.0103 | B45: 3.235840433 | C45: -21.64491206 | D45: 0 | E45: -20.88356299 | F45: -21.14529335 | G45: -17.2525546 | H45: -80.926323 | P45: 0.7613490752 | Q45: -37.63649888
A46: 0.0108 | B46: 3.392920066 | C46: -57.19867405 | D46: 0 | E46: -43.74859975 | F46: -33.88891015 | G46: -17.72180458 | H46: -152.5579885 | P46: 13.4500743 | Q46: -38.16064044
A47: 0.0113 | B47: 3.549999699 | C47: -91.34401485 | D47: 0 | E47: -40.98630011 | F47: -9.625193158 | G47: 11.70795256 | H47: -130.2475556 | P47: 50.35771473 | Q47: 52.44047414
A48: 0.0118 | B48: 3.707079331 | C48: =SIN(C$11*$B48)*vp*C$12 -> -123.2401628 | D48: 0 | E48: -14.21478174 | F48: 25.14941765 | G48: 21.38485918 | H48: -90.92066776 | P48: 109.0253811 | Q48: 155.5596579
A49: 0.0123 | B49: 3.864158964 | C49: -152.101729 | D49: 0 | E49: 20.88356299 | F49: 32.46038653 | G49: -5.017294552 | H49: -103.7750741 | P49: 172.985292 | Q49: 200.428384
A50: 0.0128 | B50: =2*PI()*A50*basefreq -> 4.021238597 | C50: -177.2180458 | D50: 0 | E50: 43.74859975 | F50: 4.323996558 | G50: -22.95461475 | H50: -152.1000643 | P50: 220.9666456 | Q50: 202.3360274
A51: =A50+stap -> 0.0133 | B51: 4.178318229 | C51: -197.9706662 | D51: 0 | E51: 40.98630011 | F51: -28.53427981 | G51: -2.164491206 | H51: -187.6831371 | P51: 238.9569663 | Q51: 208.2581953 | W51: =C51/U51*vp/10 -> 
A52: 0.0138 | B52: 4.335397862 | C52: -213.8485918 | D52: 0 | E52: 14.21478174 | F52: -30.23258046 | G52: 22.27741271 | H52: -207.5889778 | P52: 228.0633735 | Q52: 220.1082057
A53: 0.0143 | B53: 4.492477495 | C53: -224.4608552 | D53: 0 | E53: -20.88356299 | F53: 1.083671188 | G53: 9.134401485 | H53: -235.1263456 | P53: 203.5772923 | Q53: 213.7953649
A54: 0.0148 | B54: 4.649557127 | C54: -229.5461475 | D54: 0 | E54: -43.74859975 | F54: 31.21653331 | G54: -19.41954229 | H54: -261.4977563 | P54: 185.7975478 | Q54: 197.5945388
A55: 0.0153 | B55: 4.80663676 | C55: -228.9792519 | D55: 0 | E55: -40.98630011 | F55: 27.26034793 | G55: -15.2101729 | H55: -257.9153769 | P55: 187.9929517 | Q55: 200.0431268
A56: 0.0158 | B56: 4.963716393 | C56: -222.7741271 | D56: 0 | E56: -14.21478174 | F56: -6.464655353 | G56: 14.66075176 | H56: -228.7928124 | P56: 208.5593453 | Q56: 216.7554417
A57: 0.0163 | B57: 5.120796025 | C57: -211.0835639 | D57: 0 | E57: 20.88356299 | F57: -33.13013216 | G57: 19.79706662 | H57: -203.5330665 | P57: 231.9671269 | Q57: 218.6340614
A58: 0.0168 | B58: 5.277875658 | C58: =SIN(C$11*$B58)*vp*C$12 -> -194.1954229 | D58: 0 | E58: 43.74859975 | F58: -23.61687515 | G58: -8.466864712 | H58: -182.530563 | P58: 237.9440226 | Q58: 205.8602827
A59: 0.0173 | B59: 5.434955291 | C59: -172.525546 | D59: 0 | E59: 40.98630011 | F59: 11.68645825 | G59: -22.44608552 | H59: -142.2988732 | P59: 213.5118461 | Q59: 202.7522189
A60: 0.0178 | B60: 5.592034923 | C60: -146.6075176 | D60: 0 | E60: 14.21478174 | F60: 34.2279572 | G60: 1.444181949 | H60: -96.72059676 | P60: 160.8222994 | Q60: 196.4944385
A61: 0.0183 | B61: 5.749114556 | C61: -117.0795256 | D61: 0 | E61: -20.88356299 | F61: 19.39187654 | G61: 22.89792519 | H61: -95.67328689 | P61: 96.19596263 | Q61: 138.4857644
A62: 0.0188 | B62: 5.906194189 | C62: -84.66864712 | D62: 0 | E62: -43.74859975 | F62: -16.62050176 | G62: 5.719867405 | H62: -139.3178812 | P62: 40.92004737 | Q62: 30.01941302
A63: 0.0193 | B63: 6.063273821 | C63: -50.17294552 | D63: 0 | E63: -40.98630011 | F63: -34.48297633 | G63: -21.10835639 | H63: -146.7505784 | P63: 9.186645409 | Q63: -46.40468731
A64: 0.0198 | B64: 6.220353454 | C64: -14.44181949 | D64: 0 | E64: -14.21478174 | F64: -14.68938556 | G64: -12.32401628 | H64: -55.67000308 | P64: 0.2270377505 | Q64: -26.78636409
A65: 0.0203 | B65: 6.377433087 | C65: 21.64491206 | D65: 0 | E65: 20.88356299 | F65: 21.14529335 | G65: 17.2525546 | H65: 80.926323 | P65: -0.7613490752 | Q65: 37.63649888
A66: 0.0208 | B66: 6.534512719 | C66: 57.19867405 | D66: 0 | E66: 43.74859975 | F66: 33.88891015 | G66: 17.72180458 | H66: 152.5579885 | P66: -13.4500743 | Q66: 38.16064044
A67: 0.0213 | B67: 6.691592352 | C67: 91.34401485 | D67: 0 | E67: 40.98630011 | F67: 9.625193158 | G67: -11.70795256 | H67: 130.2475556 | P67: -50.35771473 | Q67: -52.44047414
A68: 0.0218 | B68: 6.848671985 | C68: =SIN(C$11*$B68)*vp*C$12 -> 123.2401628 | D68: 0 | E68: 14.21478174 | F68: -25.14941765 | G68: -21.38485918 | H68: 90.92066776 | P68: -109.0253811 | Q68: -155.5596579
A69: 0.0223 | B69: 7.005751618 | C69: 152.101729 | D69: 0 | E69: -20.88356299 | F69: -32.46038653 | G69: 5.017294552 | H69: 103.7750741 | P69: -172.985292 | Q69: -200.428384
A70: 0.0228 | B70: 7.16283125 | C70: 177.2180458 | D70: 0 | E70: -43.74859975 | F70: -4.323996558 | G70: 22.95461475 | H70: 152.1000643 | P70: -220.9666456 | Q70: -202.3360274
A71: 0.0233 | B71: 7.319910883 | C71: 197.9706662 | D71: 0 | E71: -40.98630011 | F71: 28.53427981 | G71: 2.164491206 | H71: 187.6831371 | P71: -238.9569663 | Q71: -208.2581953
A72: 0.0238 | B72: 7.476990516 | C72: 213.8485918 | D72: 0 | E72: -14.21478174 | F72: 30.23258046 | G72: -22.27741271 | H72: 207.5889778 | P72: -228.0633735 | Q72: -220.1082057
A73: 0.0243 | B73: 7.634070148 | C73: 224.4608552 | D73: 0 | E73: 20.88356299 | F73: -1.083671188 | G73: -9.134401485 | H73: 235.1263456 | P73: -203.5772923 | Q73: -213.7953649
A74: 0.0248 | B74: 7.791149781 | C74: 229.5461475 | D74: 0 | E74: 43.74859975 | F74: -31.21653331 | G74: 19.41954229 | H74: 261.4977563 | P74: -185.7975478 | Q74: -197.5945388
A75: 0.0253 | B75: 7.948229414 | C75: 228.9792519 | D75: 0 | E75: 40.98630011 | F75: -27.26034793 | G75: 15.2101729 | H75: 257.9153769 | P75: -187.9929517 | Q75: -200.0431268
A76: 0.0258 | B76: 8.105309046 | C76: 222.7741271 | D76: 0 | E76: 14.21478174 | F76: 6.464655353 | G76: -14.66075176 | H76: 228.7928124 | P76: -208.5593453 | Q76: -216.7554417
A77: 0.0263 | B77: 8.262388679 | C77: 211.0835639 | D77: 0 | E77: -20.88356299 | F77: 33.13013216 | G77: -19.79706662 | H77: 203.5330665 | P77: -231.9671269 | Q77: -218.6340614
A78: 0.0268 | B78: 8.419468312 | C78: 194.1954229 | D78: 0 | E78: -43.74859975 | F78: 23.61687515 | G78: 8.466864712 | H78: 182.530563 | P78: -237.9440226 | Q78: -205.8602827

Sheet verzadiging
B1: vp | C1: 230 | E1: V
B2: stap | C2: 0.0008
B3: basefreq | C3: 50 | E3: Hz
B4: 3thHarmFreq | C4: 150 | E4: Hz
C9: 100 | D9: 100 | E9: 50 | F9: 10 | G9: 0.8
A14: max | E14: 100
A15: min | E15: -40
A16: vermenigv | C16: 200 | D16: 150 | E16: 50 | F16: 0.9 | G16: 0.9 | H16: 5 | I16: 0
A17: [s] | B17: wt | C17: spanning | D17: stroom zonder e | E17: flux | F17: tegen emk | G17: stroom met e | H17: spanning sec | I17: som | J17: a | K17: b | L17: c | M17: d
A18: 0 | B18: =2*PI()*A18*basefreq -> 0 | C18: =SIN($B18)*$C$16 -> 0 | D18: =COS($B18)*$D$16 -> 150 | E18: =IF(COS($B18)*$E$16>$E$14,$E$14,IF(COS($B18)*$E$16<$E$15,$E$15,COS($B18)*$E$16)) -> 50 | F18: 0 | G18: =IF(F18=0,D18*$G$16,E18*$G$16) -> 135 | H18: 0
A19: =A18+stap -> 0.0008 | B19: 0.2513274123 | C19: =SIN($B19)*$C$16 -> 49.73797743 | D19: =COS($B19)*$D$16 -> 145.2874742 | E19: =IF(COS($B19)*$E$16>$E$14,$E$14,IF(COS($B19)*$E$16<$E$15,$E$15,COS($B19)*$E$16)) -> 48.42915806 | F19: =IF(E19-E18=0,0,C18*$F$16) -> 0 | G19: =IF(F19=0,D19*$G$16,E19*$G$16) -> 130.7587268 | H19: =-1*(E19-E18)*$H$16 -> 7.854209718
A20: 0.0016 | B20: 0.5026548246 | C20: 96.35073482 | D20: 131.446002 | E20: 43.815334 | F20: =IF(E20-E19=0,0,C19*$F$16) -> 44.76417969 | G20: 39.4338006 | H20: =-1*(E20-E19)*$H$16 -> 23.06912027
A21: 0.0024 | B21: 0.7539822369 | C21: 136.9094212 | D21: 109.3452941 | E21: 36.44843137 | F21: 86.71566134 | G21: 32.80358823 | H21: 36.83451316
A22: 0.0032 | B22: 1.005309649 | C22: 168.8655851 | D22: 80.37401925 | E22: 26.79133975 | F22: 123.2184791 | G22: 24.11220577 | H22: 48.28545811
A23: 0.004 | B23: 1.256637061 | C23: 190.2113033 | D23: 46.35254916 | E23: 15.45084972 | F23: 151.9790266 | G23: 13.90576475 | H23: 56.70245015
A24: 0.0048 | B24: 1.507964474 | C24: 199.6053457 | D24: 9.418577929 | E24: 3.139525976 | F24: 171.1901729 | G24: 2.825573379 | H24: 61.55661871
A25: 0.0056 | B25: 1.759291886 | C25: 196.4574501 | D25: -28.10719719 | E25: -9.369065729 | F25: 179.6448111 | G25: -8.432159156 | H25: 62.54295853
A26: 0.0064 | B26: 2.010619298 | C26: 180.9654105 | D26: -63.86689373 | E26: -21.28896458 | F26: 176.8117051 | G26: -19.16006812 | H26: 59.59949424
A27: 0.0072 | B27: 2.261946711 | C27: 154.1026486 | D27: -95.61359846 | E27: -31.87119949 | F27: 162.8688694 | G27: -28.68407954 | H27: 52.91117455
A28: 0.008 | B28: 2.513274123 | C28: 117.5570505 | D28: -121.3525492 | E28: -40 | F28: 138.6923837 | G28: -36 | H28: 40.64400256
A29: 0.0088 | B29: 2.764601535 | C29: 73.62491054 | D29: -139.4664729 | E29: -40 | F29: 0 | G29: -125.5198256 | H29: 0
A30: 0.0096 | B30: 3.015928947 | C30: 25.06664671 | D30: -148.8172052 | E30: -40 | F30: 0 | G30: -133.9354847 | H30: 0
A31: 0.0104 | B31: 3.26725636 | C31: -25.06664671 | D31: -148.8172052 | E31: -40 | F31: 0 | G31: -133.9354847 | H31: 0
A32: 0.0112 | B32: 3.518583772 | C32: -73.62491054 | D32: -139.4664729 | E32: -40 | F32: 0 | G32: -125.5198256 | H32: 0
A33: 0.012 | B33: 3.769911184 | C33: -117.5570505 | D33: -121.3525492 | E33: -40 | F33: 0 | G33: -109.2172942 | H33: 0
A34: 0.0128 | B34: 4.021238597 | C34: -154.1026486 | D34: -95.61359846 | E34: -31.87119949 | F34: -105.8013454 | G34: -28.68407954 | H34: -40.64400256
A35: 0.0136 | B35: 4.272566009 | C35: -180.9654105 | D35: -63.86689373 | E35: -21.28896458 | F35: -138.6923837 | G35: -19.16006812 | H35: -52.91117455
A36: 0.0144 | B36: 4.523893421 | C36: -196.4574501 | D36: -28.10719719 | E36: -9.369065729 | F36: -162.8688694 | G36: -8.432159156 | H36: -59.59949424
A37: 0.0152 | B37: 4.775220833 | C37: -199.6053457 | D37: 9.418577929 | E37: 3.139525976 | F37: -176.8117051 | G37: 2.825573379 | H37: -62.54295853
A38: 0.016 | B38: 5.026548246 | C38: -190.2113033 | D38: 46.35254916 | E38: 15.45084972 | F38: -179.6448111 | G38: 13.90576475 | H38: -61.55661871
A39: 0.0168 | B39: 5.277875658 | C39: -168.8655851 | D39: 80.37401925 | E39: 26.79133975 | F39: -171.1901729 | G39: 24.11220577 | H39: -56.70245015
A40: 0.0176 | B40: 5.52920307 | C40: -136.9094212 | D40: 109.3452941 | E40: 36.44843137 | F40: -151.9790266 | G40: 32.80358823 | H40: -48.28545811
A41: 0.0184 | B41: 5.780530483 | C41: -96.35073482 | D41: 131.446002 | E41: 43.815334 | F41: -123.2184791 | G41: 39.4338006 | H41: -36.83451316
A42: 0.0192 | B42: 6.031857895 | C42: -49.73797743 | D42: 145.2874742 | E42: 48.42915806 | F42: -86.71566134 | G42: 43.58624225 | H42: -23.06912027
A43: 0.02 | B43: 6.283185307 | C43: -2.266416221e-13 | D43: 150 | E43: 50 | F43: -44.76417969 | G43: 45 | H43: -7.854209718
A44: 0.0208 | B44: 6.534512719 | C44: 49.73797743 | D44: 145.2874742 | E44: 48.42915806 | F44: -2.039774599e-13 | G44: 43.58624225 | H44: 7.854209718
A45: 0.0216 | B45: 6.785840132 | C45: 96.35073482 | D45: 131.446002 | E45: 43.815334 | F45: 44.76417969 | G45: 39.4338006 | H45: 23.06912027
A46: 0.0224 | B46: 7.037167544 | C46: 136.9094212 | D46: 109.3452941 | E46: 36.44843137 | F46: 86.71566134 | G46: 32.80358823 | H46: 36.83451316
A47: 0.0232 | B47: 7.288494956 | C47: 168.8655851 | D47: 80.37401925 | E47: 26.79133975 | F47: 123.2184791 | G47: 24.11220577 | H47: 48.28545811
A48: 0.024 | B48: 7.539822369 | C48: 190.2113033 | D48: 46.35254916 | E48: 15.45084972 | F48: 151.9790266 | G48: 13.90576475 | H48: 56.70245015
A49: 0.0248 | B49: 7.791149781 | C49: 199.6053457 | D49: 9.418577929 | E49: 3.139525976 | F49: 171.1901729 | G49: 2.825573379 | H49: 61.55661871
A50: 0.0256 | B50: =2*PI()*A50*basefreq -> 8.042477193 | C50: 196.4574501 | D50: -28.10719719 | E50: -9.369065729 | F50: 179.6448111 | G50: -8.432159156 | H50: 62.54295853
A51: =A50+stap -> 0.0264 | B51: 8.293804605 | C51: 180.9654105 | D51: -63.86689373 | E51: -21.28896458 | F51: 176.8117051 | G51: -19.16006812 | H51: 59.59949424
A52: 0.0272 | B52: 8.545132018 | C52: 154.1026486 | D52: -95.61359846 | E52: -31.87119949 | F52: 162.8688694 | G52: -28.68407954 | H52: 52.91117455
A53: 0.028 | B53: 8.79645943 | C53: 117.5570505 | D53: -121.3525492 | E53: -40 | F53: 138.6923837 | G53: -36 | H53: 40.64400256
A54: 0.0288 | B54: 9.047786842 | C54: 73.62491054 | D54: -139.4664729 | E54: -40 | F54: 0 | G54: -125.5198256 | H54: 0
A55: 0.0296 | B55: 9.299114255 | C55: 25.06664671 | D55: -148.8172052 | E55: -40 | F55: 0 | G55: -133.9354847 | H55: 0
A56: 0.0304 | B56: 9.550441667 | C56: -25.06664671 | D56: -148.8172052 | E56: -40 | F56: 0 | G56: -133.9354847 | H56: 0
A57: 0.0312 | B57: 9.801769079 | C57: -73.62491054 | D57: -139.4664729 | E57: -40 | F57: 0 | G57: -125.5198256 | H57: 0
A58: 0.032 | B58: 10.05309649 | C58: -117.5570505 | D58: -121.3525492 | E58: -40 | F58: 0 | G58: -109.2172942 | H58: 0
A59: 0.0328 | B59: 10.3044239 | C59: -154.1026486 | D59: -95.61359846 | E59: -31.87119949 | F59: -105.8013454 | G59: -28.68407954 | H59: -40.64400256
A60: 0.0336 | B60: 10.55575132 | C60: -180.9654105 | D60: -63.86689373 | E60: -21.28896458 | F60: -138.6923837 | G60: -19.16006812 | H60: -52.91117455
A61: 0.0344 | B61: 10.80707873 | C61: -196.4574501 | D61: -28.10719719 | E61: -9.369065729 | F61: -162.8688694 | G61: -8.432159156 | H61: -59.59949424
A62: 0.0352 | B62: 11.05840614 | C62: -199.6053457 | D62: 9.418577929 | E62: 3.139525976 | F62: -176.8117051 | G62: 2.825573379 | H62: -62.54295853
A63: 0.036 | B63: 11.30973355 | C63: -190.2113033 | D63: 46.35254916 | E63: 15.45084972 | F63: -179.6448111 | G63: 13.90576475 | H63: -61.55661871
A64: 0.0368 | B64: 11.56106097 | C64: -168.8655851 | D64: 80.37401925 | E64: 26.79133975 | F64: -171.1901729 | G64: 24.11220577 | H64: -56.70245015
A65: 0.0376 | B65: 11.81238838 | C65: -136.9094212 | D65: 109.3452941 | E65: 36.44843137 | F65: -151.9790266 | G65: 32.80358823 | H65: -48.28545811
A66: 0.0384 | B66: 12.06371579 | C66: -96.35073482 | D66: 131.446002 | E66: 43.815334 | F66: -123.2184791 | G66: 39.4338006 | H66: -36.83451316
A67: 0.0392 | B67: 12.3150432 | C67: -49.73797743 | D67: 145.2874742 | E67: 48.42915806 | F67: -86.71566134 | G67: 43.58624225 | H67: -23.06912027
A68: 0.04 | B68: 12.56637061 | C68: 2.572594915e-13 | D68: 150 | E68: 50 | F68: -44.76417969 | G68: 45 | H68: -7.854209718
A69: 0.0408 | B69: 12.81769803 | C69: 49.73797743 | D69: 145.2874742 | E69: 48.42915806 | F69: 2.315335423e-13 | G69: 43.58624225 | H69: 7.854209718
A70: 0.0416 | B70: 13.06902544 | C70: 96.35073482 | D70: 131.446002 | E70: 43.815334 | F70: 44.76417969 | G70: 39.4338006 | H70: 23.06912027
A71: 0.0424 | B71: 13.32035285 | C71: 136.9094212 | D71: 109.3452941 | E71: 36.44843137 | F71: 86.71566134 | G71: 32.80358823 | H71: 36.83451316
A72: 0.0432 | B72: 13.57168026 | C72: 168.8655851 | D72: 80.37401925 | E72: 26.79133975 | F72: 123.2184791 | G72: 24.11220577 | H72: 48.28545811
A73: 0.044 | B73: 13.82300768 | C73: 190.2113033 | D73: 46.35254916 | E73: 15.45084972 | F73: 151.9790266 | G73: 13.90576475 | H73: 56.70245015
A74: 0.0448 | B74: 14.07433509 | C74: 199.6053457 | D74: 9.418577929 | E74: 3.139525976 | F74: 171.1901729 | G74: 2.825573379 | H74: 61.55661871
A75: 0.0456 | B75: 14.3256625 | C75: 196.4574501 | D75: -28.10719719 | E75: -9.369065729 | F75: 179.6448111 | G75: -8.432159156 | H75: 62.54295853
A76: 0.0464 | B76: 14.57698991 | C76: 180.9654105 | D76: -63.86689373 | E76: -21.28896458 | F76: 176.8117051 | G76: -19.16006812 | H76: 59.59949424
A77: 0.0472 | B77: 14.82831732 | C77: 154.1026486 | D77: -95.61359846 | E77: -31.87119949 | F77: 162.8688694 | G77: -28.68407954 | H77: 52.91117455
A78: 0.048 | B78: 15.07964474 | C78: 117.5570505 | D78: -121.3525492 | E78: -40 | F78: 138.6923837 | G78: -36 | H78: 40.64400256

Sheet bh curve
B2: u0 | C2: 0.5
B3: ur | C3: 10
B4: H | C4: 4
B5: bmax | C5: 1000
B6: b= | C6: =IF(u0*H+u0*(ur-1)*H>bmax,bmax,u0*H+u0*(ur-1)*H) -> 20 | G6: B
D8: B
C9: H | D9: =C6 -> 20 | F9: =C6 -> 20 | G9: 0.01 | H9: 0.5 | I9: 1 | J9: 2
C10: -8 | D10: -40 | F10: -8 | G10: -0.8 | H10: -40 | I10: -80 | J10: -160
C11: -7 | D11: -35 | F11: -7 | G11: -0.7 | H11: -35 | I11: -70 | J11: -140
C12: -6 | D12: -30 | F12: -6 | G12: -0.6 | H12: -30 | I12: -60 | J12: -120
C13: -5 | D13: -25 | F13: -5 | G13: -0.5 | H13: -25 | I13: -50 | J13: -100
C14: -4 | D14: -20 | F14: -4 | G14: -0.4 | H14: -20 | I14: -40 | J14: -80
C15: -3 | D15: -15 | F15: -3 | G15: -0.3 | H15: -15 | I15: -30 | J15: -60
C16: -2 | D16: -10 | F16: -2 | G16: -0.2 | H16: -10 | I16: -20 | J16: -40
C17: -1 | D17: -5 | F17: -1 | G17: -0.1 | H17: -5 | I17: -10 | J17: -20
C18: 0 | D18: 0 | F18: 0 | G18: 0 | H18: 0 | I18: 0 | J18: 0
C19: 1 | D19: 5 | F19: 1 | G19: 0.1 | H19: 5 | I19: 10 | J19: 20
C20: 2 | D20: 10 | F20: 2 | G20: 0.2 | H20: 10 | I20: 20 | J20: 40
C21: 3 | D21: 15 | F21: 3 | G21: 0.3 | H21: 15 | I21: 30 | J21: 60
C22: 4 | D22: 20 | F22: 4 | G22: 0.4 | H22: 20 | I22: 40 | J22: 80
C23: 5 | D23: 25 | F23: 5 | G23: 0.5 | H23: 25 | I23: 50 | J23: 100
C24: 6 | D24: 30 | F24: 6 | G24: 0.6 | H24: 30 | I24: 60 | J24: 120
C25: 7 | D25: 35 | F25: 7 | G25: 0.7 | H25: 35 | I25: 70 | J25: 140
C26: 8 | D26: 40 | F26: 8 | G26: 0.8 | H26: 40 | I26: 80 | J26: 160

Sheet magnetic core
D19: wat is de stroom? | H19: wat is het magneetveld bij een stroom?
C20: luchtspleet | D20: Lspleet | E20: 0.005 | F20: cm
C21: lengte ijzer | D21: Lcore | E21: 0.235 | F21: cm
C22: oppervlak core | D22: Acore | E22: 0.0006 | F22: m2
C23: oppervlak lucht | D23: Alucht | E23: 0.000875 | F23: m2
D24: ugap | E24: =4*PI()*0.0000001 -> 1.256637061e-06
D25: ucore | E25: 0.00754 | H25: stroom | I25: =stroom -> 2.012162805
H26: N | I26: 500
D27: Rcore | E27: =Lcore/ucore/Acore -> 51945.18126 | F27: A.turns/Wb | H27: MMF | I27: =I26*I25 -> 1006.081403
D28: Rgap | E28: =Lspleet/ugap/Alucht -> 4547284.088 | F28: A.turns/Wb | H28: Rtotal | I28: =Rtotal -> 4599229.27
A29: R | D29: Rtotal | E29: =Rgap+Rcore -> 4599229.27 | H29: fluxGap | I29: =I27/I28 -> 0.00021875
H30: Bgap | I30: =I29/Alucht -> 0.25
D31: Bgap | E31: 0.25 | F31: T
D32: fluxGap | E32: =Bgap*Alucht -> 0.00021875
A33: U | C33: f | D33: MMF | E33: =fluxGap*Rtotal -> 1006.081403 | F33: A.turns
D34: N | E34: 500
D35: stroom | E35: =MMF/N -> 2.012162805 | F35: A
K49: hoe kleiner de luchtspleet, hoe hoger de B bij een bepaalde stroom
D52: luchtspleet lengte
C53: =stroom -> 2.012162805 | D53: 0.001 | E53: 0.002 | F53: 0.003 | G53: 0.004 | H53: 0.005 | J53: =I30 -> 0.25 | K53: 0.001 | L53: 0.002 | M53: 0.003 | N53: 0.004 | O53: 0.005
B54: Bgap | C54: 0.1 | D54: 0.1682453498 | E54: 0.3274002929 | F54: 0.486555236 | G54: 0.6457101791 | H54: 0.8048651222 | J54: 0.5 | K54: 0.297185034 | L54: 0.1527182507 | M54: 0.1027632554 | N54: 0.07743412079 | O54: 0.06212220982
C55: 0.15 | D55: 0.2523680247 | E55: 0.4911004394 | F55: 0.729832854 | G55: 0.9685652686 | H55: 1.207297683 | J55: 1 | K55: 0.594370068 | L55: 0.3054365013 | M55: 0.2055265109 | N55: 0.1548682416 | O55: 0.1242444196
C56: 0.2 | D56: 0.3364906996 | E56: 0.6548005858 | F56: 0.973110472 | G56: 1.291420358 | H56: 1.609730244 | J56: 1.5 | K56: 0.8915551019 | L56: 0.458154752 | M56: 0.3082897663 | N56: 0.2323023624 | O56: 0.1863666295
C57: 0.25 | D57: 0.4206133745 | E57: 0.8185007323 | F57: 1.21638809 | G57: 1.614275448 | H57: 2.012162805 | J57: 2 | K57: 1.188740136 | L57: 0.6108730027 | M57: 0.4110530217 | N57: 0.3097364831 | O57: 0.2484888393
C58: 0.3 | D58: 0.5047360494 | E58: 0.9822008787 | F58: 1.459665708 | G58: 1.937130537 | H58: 2.414595367 | J58: 2.5 | K58: 1.48592517 | L58: 0.7635912533 | M58: 0.5138162772 | N58: 0.3871706039 | O58: 0.3106110491
C59: 0.35 | D59: 0.5888587243 | E59: 1.145901025 | F59: 1.702943326 | G59: 2.259985627 | H59: 2.817027928 | J59: 3 | K59: 1.783110204 | L59: 0.916309504 | M59: 0.6165795326 | N59: 0.4646047247 | O59: 0.3727332589
C60: 0.4 | D60: 0.6729813992 | E60: 1.309601172 | F60: 1.946220944 | G60: 2.582840716 | H60: 3.219460489 | J60: 3.5 | K60: 2.080295238 | L60: 1.069027755 | M60: 0.719342788 | N60: 0.5420388455 | O60: 0.4348554688
C61: 0.45 | D61: 0.7571040742 | E61: 1.473301318 | F61: 2.189498562 | G61: 2.905695806 | H61: 3.62189305 | J61: 4 | K61: 2.377480272 | L61: 1.221746005 | M61: 0.8221060435 | N61: 0.6194729663 | O61: 0.4969776786
C62: 0.5 | D62: 0.8412267491 | E62: 1.637001465 | F62: 2.43277618 | G62: 3.228550895 | H62: 4.024325611 | J62: 4.5 | K62: 2.674665306 | L62: 1.374464256 | M62: 0.9248692989 | N62: 0.6969070871 | O62: 0.5590998884
C63: 0.55 | D63: 0.925349424 | E63: 1.800701611 | F63: 2.676053798 | G63: 3.551405985 | H63: 4.426758172 | J63: 5 | K63: 2.97185034 | L63: 1.527182507 | M63: 1.027632554 | N63: 0.7743412079 | O63: 0.6212220982

Sheet voorbeeld 3,8 blad 3.10
Q5: wijzig de waarden in de rode cirkels
J6: Ia | K6: graden | Q6: de rode cellen geven de stromen weer.
J7: =I71 ->  | K7: =J71 -> 
M11: Ra | N11: Xa
M12: 10 | N12: 0
B14: Uc | C14: graden | G14: Ua | H14: graden | M14: Un | N14: graden
B15: 400 | C15: 210 | G15: 400 | H15: 90 | M15: =I69 ->  | N15: =J69 -> 
J20: Rc | K20: Xc | N20: Rb | O20: Xb
J21: 0 | K21: -10 | N21: 0 | O21: 10
E25: Ub | F25: graden
E26: 400 | F26: -30
E29: Ic | F29: graden | L29: Ib | M29: graden
E30: =I75 ->  | F30: =J75 ->  | L30: =I73 ->  | M30: =J73 -> 
B31: EVZ01dl3-driefasensystemen hogeschool rotterdam | F31: EVZ01dl3-driefasensystemen.pdf
E32: schaal | F32: 1
C33: shapename | D33: Xo | E33: Yo | F33: Xe | G33: Ye | H33: TextVisible
C34: _Ua | D34: 0 | E34: 0 | F34: 100 | G34: 100 | H34: x
C35: _Ub | D35: =F36 -> -346.4101615 | E35: =G36 -> -200 | F35: =D46 -> 346.4101615 | G35: -200 | H35: x
C36: _Uc | D36: =F34 -> 100 | E36: =G34 -> 100 | F36: =D47 -> -346.4101615 | G36: -200 | H36: x
C37: _Un | D37: 0 | E37: 0 | F37: =G69 ->  | G37: =H69 ->  | H37: x
C38: Ub-Un | D38: 0 | E38: 0 | F38: =G72 ->  | G38: =H72 ->  | H38: x
C39: _In | D39: 0 | E39: 0 | F39: =G77 ->  | G39: =H77 ->  | H39: x
C40: _Ia | D40: 0 | E40: 0 | F40: =G71 ->  | G40: =H71 ->  | H40: x
C41: _Ib | D41: 0 | E41: 0 | F41: =G73 ->  | G41: =H73 ->  | H41: x
C42: _Ic | D42: 0 | E42: 0 | F42: =G75 ->  | G42: =H75 ->  | H42: x
D44: X | E44: Y | G44: Re | H44: Im | I44: abs | J44: hoek
C45: Ua | D45: =G15*COS(H15*2*PI()/360) -> 2.45029691e-14 | E45: =G15*SIN(H15*2*PI()/360) -> 400 | F45: =COMPLEX(D45,E45,"i") -> 2,45029690981724E-14+400i | G45: =IMREAL(F45) -> 2.45029691e-14 | H45: =IMAGINARY(F45) -> 400 | I45: =IMABS(F45) -> 400 | J45: =IMARGUMENT(F45)*360/2/PI() -> 90
C46: Ub | D46: =E26*COS(F26*2*PI()/360) -> 346.4101615 | E46: =E26*SIN(F26*2*PI()/360) -> -200 | F46: =COMPLEX(D46,E46,"i") -> 346,410161513776-200i | G46: =IMREAL(F46) -> 346.4101615 | H46: =IMAGINARY(F46) -> -200 | I46: 400 | J46: -30
C47: Uc | D47: =B15*COS(C15*2*PI()/360) -> -346.4101615 | E47: =B15*SIN(C15*2*PI()/360) -> -200 | F47: =COMPLEX(D47,E47,"i") -> -346,410161513775-200i | G47: -346.4101615 | H47: -200 | I47: 400 | J47: -150
C48: Za | F48: =COMPLEX(M12,N12,"i") -> 10 | G48: 10 | H48: 0 | I48: 10 | J48: 0
C49: Zb | F49: =COMPLEX(N21,O21,"i") -> 10i | G49: 0 | H49: 10 | I49: 10 | J49: 90
C50: Zc | F50: =COMPLEX(J21,K21,"i") -> -10i | G50: 0 | H50: -10 | I50: 10 | J50: -90
C52: Zab | F52: =IMSUM(F48,F49,IMDIV(IMPRODUCT(F48,F49),F50)) -> 10i | G52: =IMREAL(F52) -> 0 | H52: =IMAGINARY(F52) -> 10 | I52: =IMABS(F52) -> 10 | J52: =IMARGUMENT(F52)*360/2/PI() -> 90
C53: Zbc | F53: =IMSUM(F49,F50,IMDIV(IMPRODUCT(F49,F50),F48)) -> 10 | G53: =IMREAL(F53) -> 10 | H53: =IMAGINARY(F53) -> 0 | I53: =IMABS(F53) -> 10 | J53: =IMARGUMENT(F53)*360/2/PI() -> 0
C54: Zca | F54: =IMSUM(F50,F48,IMDIV(IMPRODUCT(F50,F48),F49)) -> -10i | G54: 0 | H54: -10 | I54: 10 | J54: -90
C57: Ia | F57: =IMDIV(F45,F52) -> 40-2,45029690981724E-15i | I57: =IMABS(F57) -> 40 | J57: =IMARGUMENT(F57)*360/2/PI() -> -3.509791787e-15
C58: Ib | F58: =IMDIV(F46,F53) -> 34,6410161513776-20i | I58: =IMABS(F58) -> 40 | J58: =IMARGUMENT(F58)*360/2/PI() -> -30
C59: Ic | F59: 20-34,6410161513775i | I59: =IMABS(F59) -> 40 | J59: =IMARGUMENT(F59)*360/2/PI() -> -60
C61: som stromen | F61: =IMSUM(F58,F59,F57) -> 94,6410161513776-54,6410161513775i | I61: =IMABS(F61) -> 109.2820323 | J61: =IMARGUMENT(F61)*360/2/PI() -> -30
C63: 1/Za | F63: =IMDIV(1,F48) -> 0,1 | I63: 0.1 | J63: 0
C64: 1/Zb | F64: =IMDIV(1,F49) -> -0,1i | I64: 0.1 | J64: -90
C65: 1/Zc | F65: =IMDIV(1,F50) -> 0,1i | I65: 0.1 | J65: 90
C66: 1/Zn | F66: =IMDIV(1,F51) -> 
C67: som Z | F67: =IMSUM(F63,F64,F65,F66) -> 
B69: a. berekening Un | C69: Un | F69: =IMDIV(F61,F67) ->  | H69: =IMAGINARY(F69) ->  | I69: =IMABS(F69) ->  | J69: =IMARGUMENT(F69)*360/2/PI() -> 
B70: b | C70: Ua-Un | F70: =IMSUB(F45,F69) -> 
C71: Ia | F71: =IMDIV(F70,F48) -> 
C72: Ub-Un | F72: =IMSUB(F46,F69) -> 
C73: Ib | F73: =IMDIV(F72,F49) ->  | G73: =IMREAL(F73) -> 
C74: Uc-Un | F74: =IMSUB(F47,F69) ->  | G74: =IMREAL(F74) -> 
C75: Ic | F75: =IMDIV(F74,F50) -> 
C76: Un-ster | F76: =IMSUB(F69,0) -> 
C77: In | F77: =IMDIV(F76,F51) -> 
B78: c | C78: PspanningA | F78: =IMPRODUCT(F71,F45) -> 
C79: PspanningB | F79: =IMPRODUCT(F73,F46) -> 
C80: PspanningC | F80: =IMPRODUCT(F75,F47) -> 
B81: d | C81: vermogenA | F81: =IMPRODUCT(IMPOWER(F71,2),F48) -> 
C82: vermogenB | F82: =IMPRODUCT(IMPOWER(F73,2),F49) -> 
C83: vermogenC | F83: =IMPRODUCT(IMPOWER(F75,2),F50) -> 
C84: vermogen nul | F84: =IMPRODUCT(IMPOWER(F77,2),F51) -> 
C85: som vermogen | F85: =IMSUM(F82,F83) -> 
